Cogmind - Beta 14 *** ADVENTURER MODE // 2024.08.19 @ 01:53:58 Player: KURIIRI Result: Self-destructed Performance ------------- Evolutions (2) 1000 Regions Visited (3) 600 Robots Destroyed (46) 230 Value Destroyed (1342) 1342 Prototype IDs (7) 140 Alien Tech Used (0) 0 Bonus (11) 11 TOTAL SCORE: 3323 Bonus ------- High Alert Combat Kills 11 Cogmind --------- Core Integrity 444/550 Matter 300/300 Energy 280/280 System Corruption 0% Temperature Cool (0) Movement Treading (320) Ox2 Location -8/Materials Parts ------- > --- POWER (1) -------- Heavy Ion Engine > --- PROPULSION (3) --- Light Treads > --- UTILITY (4) ------ Large Storage Unit Light Armor Plating Light Armor Plating Makeshift Light Armor Plating > --- WEAPON (3) ------- Improved Medium Laser Improved Medium Laser Maul > --- INVENTORY (15) --- Heavy Ion Engine Subdweller Power Source Subdweller Monowheel Heat Sink High-capacity Matter Pod (200) Structural Scanner Signal Interpreter Subdweller Machine Gun Battle Cannon Missile Launcher Missile Launcher Missile Launcher Missile Launcher Peak State ------------ > --- POWER ------------ Heavy Ion Engine > --- PROPULSION ------- Light Treads > --- UTILITY ---------- Large Storage Unit Light Armor Plating Light Armor Plating Makeshift Light Armor Plating > --- WEAPON ----------- Improved Medium Laser Improved Medium Laser Maul > --- INVENTORY -------- Heavy Ion Engine Subdweller Power Source Subdweller Monowheel Heat Sink High-capacity Matter Pod Structural Scanner Signal Interpreter Subdweller Machine Gun Battle Cannon Missile Launcher Missile Launcher [Rating: 21] Favorites ----------- Power Heavy Ion Engine Engine Heavy Ion Engine Propulsion Light Treads Treads Light Treads Utility Large Storage Unit Storage Large Storage Unit Protection Light Armor Plating Weapon EM Pulse Gun Energy Gun EM Pulse Gun Ballistic Gun Light Assault Rifle Launcher Grenade Launcher Impact Weapon Maul Slashing Weapon Mining Claw Build | -11 -10 -10 -8 ------- Run | Yrd Mat Sub Mat Slots Evolved 4 | . . . 4 Power . | . . . . Propulsion 1 | . . . 1 Utility 2 | . . . 2 Weapon 1 | . . . 1 Parts Attached 35 | 5 19 6 5 Power 2 | . 2 . . Engine 2 | . 2 . . Core . | . . . . Reactor . | . . . . Propulsion 5 | 2 2 1 . Treads 5 | 2 2 1 . Leg . | . . . . Wheel . | . . . . Hover . | . . . . Flight . | . . . . Utility 8 | 1 3 1 3 Device . | . . . . Storage 3 | 1 2 . . Processor . | . . . . Hackware . | . . . . Protection 5 | . 1 1 3 Artifact . | . . . . Weapon 20 | 2 12 4 2 Energy Gun 11 | 1 6 2 2 Energy Cannon . | . . . . Ballistic Gun 3 | 1 2 . . Ballistic Cannon . | . . . . Launcher 2 | . 2 . . Special Weapon . | . . . . Impact Weapon 2 | . . 2 . Slashing Weapon 2 | . 2 . . Piercing Weapon . | . . . . Special Melee Weapon . | . . . . Unidentified Prototypes . | . . . . Parts Lost 6 | . 1 4 1 Power . | . . . . Propulsion 2 | . . 2 . Utility 1 | . . . 1 Weapon 3 | . 1 2 . Highest Loss Streak 2 | . 1 2 1 To Critical Strikes . | . . . . Average Slot Usage (%) 92 | . 93 98 75 Engine 12 | . 12 14 9 Treads 24 | . 28 27 9 Storage 13 | . 14 14 9 Protection 13 | . 10 14 21 Energy Gun 22 | . 21 25 18 Ballistic Gun 1 | . 4 . . Impact Weapon 1 | . . . 9 Peak Build Rating 21 | 5 14 15 21 Average Rating 11 | 3 7 13 19 On Entrance 7 | . 5 10 13 Naked Turns . | . . . . Heaviest Build 47 | 8 37 39 47 Greatest Support 40 | 40 40 40 20 Greatest Overweight (x) 2 | . . 1 2 Average Overweight (x) . | . . . 1 Largest Inventory Capacity 15 | 8 15 15 15 Average Capacity 13 | 7 10 15 15 Most Carried 15 | 5 10 15 13 Average Carried 10 | 1 8 14 9 Final Capacity 15 | 8 15 15 15 Final Carried 13 | 2 10 13 13 Class Distribution -------------------- 100% | Mutant Dominant Class ---------------- Mutant | -10/Materials Mutant | -10/Subcaves Mutant | -8/Materials Resources | -11 -10 -10 -8 ----------- Run | Yrd Mat Sub Mat Matter Collected 799 | 250 451 48 50 Remotely . | . . . . Salvage Created 1427 | . 341 442 644 Parts 71 | . 27 24 20 Haulers Intercepted 3 | . 2 . 1 Recyclers Shooed . | . . . . Parts Field Recycled . | . . . . Retrieved Matter . | . . . . Parts Self-Destructed 10 | . . 10 . Prevented 1 | . . 1 . Kills | -11 -10 -10 -8 ------- Run | Yrd Mat Sub Mat Combat Hostiles Destroyed 38 | . 12 11 15 Melee 3 | . . . 3 Guns 19 | . 5 6 8 AOE 8 | . 7 1 . Classes Destroyed 8 | . 5 1 2 Worker 1 | . 1 . . Hauler 3 | . 2 . 1 Operator 1 | . . . 1 Watcher 3 | . 3 . . Swarmer 13 | . 6 3 4 Grunt 15 | . 6 . 9 Sentry 2 | . . . 2 Subdweller 8 | . . 8 . Best Kill Streak 11 | . 11 3 3 Combat Bots Only 9 | . 9 3 3 Max Kills in Single Turn 3 | . 3 1 2 Gunslinging 1 | . 1 . 1 Exploded 3 | . 3 1 . Melee 1 | . . . 1 Uniques/NPCs Destroyed . | . . . . Combat | -11 -10 -10 -8 -------- Run | Yrd Mat Sub Mat Hostile Shots Fired 194 | . 60 56 78 Missed 62 | . 14 19 29 Damage Taken 1491 | . 387 582 522 Core 299 | . 102 91 106 Absorbed by Shields . | . . . . Ignored by Resistances 475 | . 122 202 151 Core Remaining (%) 61 | 100 . 22 . Volleys Fired 107 | . 57 31 19 Largest 2 | . 2 2 2 Hottest 112 | . 80 80 112 Shots Fired 175 | . 75 62 38 Gun 169 | . 69 62 38 Cannon . | . . . . Launcher 6 | . 6 . . Special . | . . . . Kinetic 11 | . 11 . . Thermal 38 | . . . 38 Explosive 6 | . 6 . . Electromagnetic 120 | . 58 62 . Robot Hit Streak 16 | . 13 15 16 Robot Miss Streak 2 | . 2 1 2 Penetration Max . | . . . . Secondary Targets 7 | . 2 2 3 Max Gunslinging Chain 1 | . 1 1 1 Shots Hit Robots 149 | . 38 65 46 Core Hits 59 | . 27 18 14 Critical Kills 1 | . . . 1 Critical Parts Destroyed 7 | . . . 7 Critical Strikes 12 | . . . 12 Burn 4 | . . . 4 Smash 8 | . . . 8 Melee Attacks 36 | . 6 13 17 Impact 30 | . . 13 17 Slashing 6 | . 6 . . Piercing . | . . . . Sneak Attacks 2 | . . . 2 Combat Hostiles . | . . . . Follow-up Attacks . | . . . . Damage Inflicted 3608 | . 1242 1117 1249 Guns 1562 | . 438 591 533 Cannons . | . . . . Explosions 873 | . 796 77 . Melee 1165 | . . 449 716 Ramming 8 | . 8 . . Kinetic 70 | . 70 . . Thermal 928 | . 318 77 533 Explosive 478 | . 478 . . Electromagnetic 959 | . 368 591 . Impact 1165 | . . 449 716 Slashing . | . . . . Piercing . | . . . . Highest Corruption . | . . . . Average Corruption . | . . . . Corruption Purged . | . . . . Corruption Blocked . | . . . . Overload Shots . | . . . . Overflow Damage 512 | . 76 17 419 Projectiles . | . . . . Explosions 76 | . 76 . . Melee 436 | . . 17 419 Knockbacks 10 | . . 7 3 Impact 10 | . . 7 3 Kinetic . | . . . . Secondary . | . . . . Self-Inflicted Damage 75 | . 25 50 . Shots 2 | . 1 1 . Rammed 1 | . 1 . . Targets Rammed 1 | . 1 . . Kicked . | . . . . Crushed . | . . . . Highest Temperature 383 | . 150 184 383 Average Temperature 118 | . 43 90 165 Received Heat Transfer 768 | . 135 345 288 Effects 6 | . . . 6 Shutdowns 1 | . . . 1 Energy Bleed 1 | . . . 1 Interference 4 | . . . 4 Siege Activations . | . . . . Robots Corrupted 11 | . 1 4 6 Combat Hostiles 8 | . . 4 4 Parts Fried 13 | . 3 4 6 Impact Corruptions 13 | . . 2 11 Robots Melted . | . . . . Combat Hostiles . | . . . . Parts Melted 6 | . . . 6 Heat Transferred 1743 | . 250 50 1443 Parts Sabotaged . | . . . . Parts Stolen . | . . . . Parts Stripped . | . . . . Power Chain Reactions 4 | . 2 2 . Alert | -11 -10 -10 -8 ------- Run | Yrd Mat Sub Mat Peak Influence 423 | . 423 . 397 Initial . | . . . . Average 155 | . 160 . 160 Maximum Alert Level 2 | . 2 . 1 Low Security (%) 63 | 100 63 . 60 Level 1 33 | . 33 . 39 Level 2 2 | . 3 . . Level 3 . | . . . . Level 4 . | . . . . Level 5 . | . . . . High Security . | . . . . Max Security . | . . . . Squads Dispatched 4 | . 1 . 3 Investigation 3 | . 1 . 2 Extermination . | . . . . Reinforcement 1 | . . . 1 Assault . | . . . . Garrison . | . . . . Intercept . | . . . . Searches Triggered . | . . . . Construction Impeded . | . . . . Haulers Reinforced . | . . . . Active Scanning Responses . | . . . . Cargo Convoy Interrupts . | . . . . Stealth | -11 -10 -10 -8 --------- Run | Yrd Mat Sub Mat Distress Signals 3 | . 2 . 1 Communications Jammed . | . . . . Distress Signals . | . . . . Times Spotted 49 | . 17 13 19 Peak Tracking Total 7 | . 7 3 4 Tactical Retreats 3 | . . 1 2 Traps | -11 -10 -10 -8 ------- Run | Yrd Mat Sub Mat Traps Triggered 2 | . 2 . . Indirectly . | . . . . Trap Hack Attempts . | . . . . Triggered . | . . . . Disarmed . | . . . . Reprogrammed 3 | . 3 . . Reused . | . . . . Traps Extracted . | . . . . Installed . | . . . . Triggered . | . . . . Machines | -11 -10 -10 -8 ---------- Run | Yrd Mat Sub Mat Machines Disabled 8 | . 7 . 1 Max in Single Turn 2 | . 2 . 1 Machines Repaired . | . . . . Machines Dismantled . | . . . . Machines Sabotaged . | . . . . Overloaded Fab Kills . | . . . . Hacking | -11 -10 -10 -8 --------- Run | Yrd Mat Sub Mat Machines Accessed 11 | . 6 3 2 Terminals 8 | . 6 . 2 Fabricators . | . . . . Repair Stations . | . . . . Recycling Units . | . . . . Scanalyzers . | . . . . Garrison Access . | . . . . Total Hacks 47 | . 29 6 12 Successful 32 | . 20 6 6 Failed 13 | . 7 . 6 Catastrophic . | . . . . Database Lockouts 2 | . 2 . . Manual 21 | . 15 . 6 Terminals 41 | . 29 . 12 Fabricators . | . . . . Repair Stations . | . . . . Recycling Units . | . . . . Scanalyzers . | . . . . Garrison Access . | . . . . Terminal Hacks 24 | . 14 6 4 Record 7 | . 3 4 . Robot Analysis 2 | . 1 . 1 Prototype ID Bank 5 | . 4 . 1 Open Door 1 | . . 1 . Branch Access Points 1 | . . . 1 Terminal Index 2 | . 1 . 1 Locate Traps 2 | . 2 . . Reprogram Traps 1 | . 1 . . Dispatch Records 1 | . 1 . . Registered Prototypes 1 | . 1 . . Release Object 1 | . . 1 . Fabricator Hacks . | . . . . Repair Station Hacks . | . . . . Recycling Unit Hacks . | . . . . Scanalyzer . | . . . . Garrison Access Hacks . | . . . . Unauthorized Hacks 8 | . 6 . 2 Terminals 8 | . 6 . 2 Botnet 8 | . 6 . 2 Fabricators . | . . . . Repair Stations . | . . . . Recycling Units . | . . . . Scanalyzers . | . . . . Garrison Access . | . . . . Data Cores Recovered . | . . . . Used . | . . . . Hacking Detections 8 | . 6 . 2 Full Trace Events 5 | . 3 . 2 Feedback Events . | . . . . Feedback Blocked . | . . . . Robot Schematics Acquired . | . . . . Robots Built . | . . . . Authchips . | . . . . Time . | . . . . Total Robot Build Rating . | . . . . Part Schematics Acquired . | . . . . Parts Built . | . . . . Authchips . | . . . . Time . | . . . . Total Part Build Rating . | . . . . Parts Repaired . | . . . . Time . | . . . . Parts Recycled . | . . . . Recycled Matter . | . . . . Retrieved Matter . | . . . . Retrieved Components . | . . . . Parts Scanalyzed . | . . . . Part Schematics Acquired . | . . . . Parts Damaged . | . . . . Bothacking | -11 -10 -10 -8 ------------ Run | Yrd Mat Sub Mat Used RIF Installer . | . . . . Robots Hacked . | . . . . Non-combat . | . . . . Combat . | . . . . Robot Hacks Applied . | . . . . Relay Couplers Released . | . . . . Fabnet Peak Effective % . | . . . . Robots Rewired . | . . . . Allies Hacked . | . . . . Hacks Repelled . | . . . . Allies | -11 -10 -10 -8 -------- Run | Yrd Mat Sub Mat Total Allies . | . . . . Largest Group . | . . . . Highest-Rated Group . | . . . . Highest-Rated Ally . | . . . . Total Orders . | . . . . Ally Attacks . | . . . . Total Damage . | . . . . Kills . | . . . . Allies Corrupted . | . . . . Allies Melted . | . . . . Intel | -11 -10 -10 -8 ------- Run | Yrd Mat Sub Mat Robot Analysis Total 2 | . 1 . 1 Derelict Logs Recovered 1 | . . 1 . Drone Launches . | . . . . Drone Recoveries . | . . . . Exploration | -11 -10 -10 -8 ------------- Run | Yrd Mat Sub Mat Turns Passed 3058 | 62 1304 1250 442 Spaces Moved 1482 | 40 683 674 85 Core 13 | 13 . . . Treads 1469 | 27 683 674 85 Legs . | . . . . Wheels . | . . . . Hover . | . . . . Flight . | . . . . Fastest Speed 50 | 50 160 160 240 Average Speed 169 | 124 160 162 319 Slowest Speed 320 | 160 160 240 320 Overloaded Moves . | . . . . Propulsion Burnouts . | . . . . Robots Hopped . | . . . . Cave-ins Triggered . | . . . . Exploration Rate (%) 39 | 5 98 47 9 Regions Visited 3 Branch Regions 1 Pre-discovered Areas 2 | . . 2 . Known Exits Taken . | . . . . Unknown Exits Taken 3 | 1 1 1 . Scrap Searched 4 | . . 4 . Spaces Dug 2 | . 2 . . Terrain Destroyed 110 | . 93 17 . Melee 2 | . 2 . . Projectile . | . . . . AOE 108 | . 91 17 . Terrain Rammed . | . . . . Walls Destroyed . | . . . . Machines Disabled . | . . . . Actions | -11 -10 -10 -8 --------- Run | Yrd Mat Sub Mat Total 1790 | 53 808 746 183 Wait 74 | . 15 7 52 Move 1479 | 39 682 673 85 Hop . | . . . . Pick Up 41 | 8 18 10 5 Fast Attach . | . . . . Attach 21 | 5 6 5 5 Detach 1 | . 1 . . Swap 14 | . 13 1 . Drop 15 | 1 9 5 . Fire 107 | . 57 31 19 Melee 36 | . 6 13 17 Ram . | . . . . Kick . | . . . . Crush 1 | . 1 . . Escape Stasis . | . . . . Rewire . | . . . . Trap . | . . . . Miscellaneous 1 | . . 1 . Route ------- -11/Scrapyard -10/Materials (discovered 5 exits: [*Mat x3] / [*Min] / *Sub) -10/Subcaves -8/Materials History --------- Turn | Location | Event 2 | -11/Scrapyard | Met Revision 17 8 | -11/Scrapyard | Discovered new exit (range 16) 63 | -11/Scrapyard | Entered Materials 183 | -10/Materials | Discovered new exit (range 16) 308 | -10/Materials | Build established: Mutant 370 | -10/Materials | Central database locked down 442 | -10/Materials | Destroyed 9 combat bots 492 | -10/Materials | Central database locked down 590 | -10/Materials | Discovered new exit (range 12) 761 | -10/Materials | Discovered new exit (range 6) 963 | -10/Materials | Derelicts attacked the area 976 | -10/Materials | Discovered new exit (range 16) 1347 | -10/Materials | Discovered new exit (range 12) 1367 | -10/Materials | Entered Subcaves 1375 | -10/Subcaves | Learned location of Zion (-6) 1428 | -10/Subcaves | Discovered new exit (range 15) 1523 | -10/Subcaves | Disturbed a concealed Subdweller 1533 | -10/Subcaves | Core integrity fell below 50% 1748 | -10/Subcaves | Disturbed a concealed Subdweller 1989 | -10/Subcaves | Released subatomizers from SUBCON Basin 2048 | -10/Subcaves | Met a Zionite searching for "candidates" 2326 | -10/Subcaves | Visited Clippyterm 2331 | -10/Subcaves | Learned Factory garrison access intel 2617 | -10/Subcaves | Entered Materials 2617 | -8/Materials | Evolved 4 slots: Propulsion x1, Utility x2, Weapon x1 3059 | -8/Materials | Self-destructed Last Messages --------------- 03045_ K-01 Serf collects debris. 03046_ R-06 Scavenger collects Great Maul. 03046_ Acquired Missile Launcher. 03048_ K-01 Serf collects debris. 03049_ R-06 Scavenger collects Wheel. 03050_ Acquired Missile Launcher. 03052_ K-01 Serf collects debris. 03053_ R-06 Scavenger collects Sml. Matter Pod. 03054_ Acquired Missile Launcher. 03056_ K-01 Serf collects debris. 03059_ Connecting with Terminal... >>Trojan(Botnet) Trojan loaded successfully. Testing... Terminal linked with 0 systems. Awaiting botnet instructions. >>Access(Branch) No branch access points found. 03059_ ALERT: Suspicious activity at Terminal M007. Dispatching Investigation squad. Map ----- +----------------------------------------------------+ | ????????????????????????????????#####????????????? | | ????????????????????????????????# ###########??? | | ????????????????????????????????# # """T""" #??? | | ????????????????????????????????# # #??? | | ????????????????????????????????# # #??? | | ????????????????????????????????# # !! * #??? | | ????????????????????????????????# + ! % #??? | | ????????????????????????????????# % # !! #??? | | ????????????????????????????????###%# #??? | | ??????????????????????????????????# # #??? | | ????????????????????????????????### ###########??? | | ????????????????????????????????# # #????? | | ????????????????????????????????# # #????? | | ????????????????????????????????# + #????? | | ????????????????????????????????# # ##????? | | ????????????????????????????????# # #?????? | | ????????????????????????????????## ##? ##?????? | | ?????????????????????????????????# #??###??????? | | ?????????????????????????????????# #???????????? | | ?????????????????????????????????# #???????????? | | ???????????????????#????????????## ##??????????? | | ???????????####+#### ############ =#########??? | | ?????????? % %% %[%==%* % #??? | | ?????????? k% % [####### #??? | | ?????????? ] r % #?????# #??? | | ????????????##### #######@#% ### !#?????T #??? | | ??????????????????????? T # #?#######?????# #??? | | ????????????????????? # #?????????????# #??? | | ???????????????????# """" # #????????????? ??? | | ???????????????????# """" # #????????????? % ??? | | ???????????????????# """" # #????????????? ??? | | ?????????????????????? # #?????????????# #??? | | ??????????????????????*[ # #?????????????? ???? | | ??????????????????????*[ # #?????????????? ???? | | ???????????????????????? # #?????????????? ???? | | ??????????????????????? # #??????????????#???? | | ???????????????????????? # #??????????????????? | | ????????????????????????##? #??????????????????? | | ??????????????????????????? ??????????????????? | | ??????????????????????????? ???????????????????? | | ?????????????????????????????????????????????????? | | ?????????????????????????????????????????????????? | | ?????????????????????????????????????????????????? | | ?????????????????????????????????????????????????? | | ?????????????????????????????????????????????????? | | ?????????????????????????????????????????????????? | | ?????????????????????????????????????????????????? | | ?????????????????????????????????????????????????? | | ?????????????????????????????????????????????????? | | ?????????????????????????????????????????????????? | +----------------------------------------------------+ Best States ------------- Heat Dissipation 31 Energy Generation 14 Energy Capacity 280 Matter Stores 300 Matter Capacity 300 Sight Range 16 Terrain Scan Density 10 Armor Coverage 400 Resistance: KI 30 Resistance: TH 20 Resistance: EX 20 Resistance: EM 20 Resistance: I 20 Resistance: S 20 Resistance: P 20 Evasion (%) 50 Recoil Reduction 2 Offensive Hacking 10 Item Schematics ----------------- None Robot Schematics ------------------ None Fabricated ------------ Nothing Alien Tech Used ----------------- None Achievements -------------- None Challenges ------------ None Game ------ Seed NullExpertMallet Manual? 0 Play Time 00:26:39 Cumulative 36.7 hours Start 2024.08.19 @ 01:04:45 End 2024.08.19 @ 01:53:58 Sessions 3 Manual Loads 0 Difficulty Adventurer Special Mode None Game No. 23 Rogue 0 Adventurer 23 Explorer 0 Win Type - Total 0 Types 0/0/0/0/0/0/0/0/0 Lore% 27 Gallery% 37 Achievement% 39 Wizard Run 0 Options --------- Layout 1 ASCII 0 Keyboard 0 Movement Numpad Keybinds 0 Fullscreen 1 Font 48/Smallcaps Map View 50x35 Zoom Use 0% Tactical HUD 1 Map Filters NONE Filters NONE Steam 1 RUN: 3e522b28-ca39-4cca-8e20-0a64dcfe29d0